Cogmind - Beta 14 @@@ ROGUE MODE // 2024.10.08 @ 15:05:52 Player: Gatamar Result: Destroyed by D-53 Grenadier with Mini Grenade Launcher Performance ------------- Evolutions (0) 0 Regions Visited (4) 800 Robots Destroyed (17) 85 Value Destroyed (446) 446 Prototype IDs (3) 60 Alien Tech Used (0) 0 Bonus (300) 300 TOTAL SCORE: 1691 Bonus ------- Aligned with FarCom 300 Cogmind --------- Core Integrity 0/250 Matter 270/300 Energy 43/250 System Corruption 0% Temperature Hot (219) Movement Walking (260) Ox2 Location -9/Mines Parts ------- > --- POWER (1) -------- Ion Engine > --- PROPULSION (2) --- Aluminum Leg Aluminum Leg > --- UTILITY (2) ------ Large Storage Unit Structural Scanner > --- WEAPON (2) ------- Firepult > --- INVENTORY (15) --- Seismic Detector Targeting Computer Assault Rifle Light Assault Rifle Light Assault Rifle Grenade Launcher Mining Laser Makeshift Hammer Peak State ------------ > --- POWER ------------ Light Nuclear Core > --- PROPULSION ------- Light Treads Light Treads > --- UTILITY ---------- Large Storage Unit Structural Scanner > --- WEAPON ----------- Firepult > --- INVENTORY -------- Ion Engine Aluminum Leg Aluminum Leg Assault Rifle Light Assault Rifle Light Assault Rifle Grenade Launcher Mining Laser Makeshift Hammer [Rating: 28] Favorites ----------- Power Light Nuclear Core Engine Ion Engine Power Core Light Nuclear Core Propulsion Light Treads Treads Light Treads Leg Aluminum Leg Utility Structural Scanner Device Structural Scanner Storage Small Storage Unit Processor Targeting Computer Weapon Firepult Energy Gun Medium Laser Energy Cannon Firepult Ballistic Gun Assault Rifle Build | -11 -10 -10 -10 -9 ------- Run | Yrd Mat Min Exi Min Slots Evolved . | . . . . . Power . | . . . . . Propulsion . | . . . . . Utility . | . . . . . Weapon . | . . . . . Parts Attached 18 | 6 5 2 2 3 Power 4 | 1 1 1 . 1 Engine 3 | 1 1 . . 1 Core 1 | . . 1 . . Reactor . | . . . . . Propulsion 4 | 2 . . . 2 Treads 2 | 2 . . . . Leg 2 | . . . . 2 Wheel . | . . . . . Hover . | . . . . . Flight . | . . . . . Utility 5 | 1 2 1 1 . Device 2 | . 1 1 . . Storage 2 | 1 . . 1 . Processor 1 | . 1 . . . Hackware . | . . . . . Protection . | . . . . . Artifact . | . . . . . Weapon 5 | 2 2 . 1 . Energy Gun 2 | 2 . . . . Energy Cannon 1 | . . . 1 . Ballistic Gun 2 | . 2 . . . Ballistic Cannon . | . . . . . Launcher . | . . . . . Special Weapon . | . . . . . Impact Weapon . | . . . . . Slashing Weapon . | . . . . . Piercing Weapon . | . . . . . Special Melee Weapon . | . . . . . Unidentified Prototypes 1 | . . . 1 . Parts Lost 7 | . 3 1 . 3 Power 3 | . 1 1 . 1 Propulsion 2 | . . . . 2 Utility . | . . . . . Weapon 2 | . 2 . . . Highest Loss Streak 3 | . 2 1 . 3 To Critical Strikes . | . . . . . Average Slot Usage (%) 91 | . 95 99 88 83 Engine 4 | . 12 5 . . Core 9 | . . 7 14 12 Treads 27 | . 28 28 28 25 Device 12 | . 5 14 14 14 Storage 14 | . 14 14 14 14 Processor 1 | . 6 . . . Energy Gun 3 | . 18 . . . Energy Cannon 6 | . . . 10 14 Ballistic Gun 10 | . 8 28 6 . Peak Build Rating 28 | 6 7 9 27 28 Average Rating 16 | 4 6 8 22 27 On Entrance 9 | . 6 7 9 27 Naked Turns . | . . . . . Heaviest Build 48 | 12 15 14 48 48 Greatest Support 40 | 40 40 40 40 40 Greatest Overweight (x) 2 | . . . 1 2 Average Overweight (x) . | . . . . 1 Largest Inventory Capacity 15 | 8 8 8 15 15 Average Capacity 9 | 7 8 8 8 15 Most Carried 11 | 6 8 8 8 11 Average Carried 7 | 3 6 7 7 9 Final Capacity 15 | 8 8 8 15 15 Final Carried 8 | 6 8 8 8 8 Class Distribution -------------------- 100% | Mutant Dominant Class ---------------- Mutant | -10/Materials Mutant | -10/Mines Mutant | -10/Exiles Mutant | -9/Mines Resources | -11 -10 -10 -10 -9 ----------- Run | Yrd Mat Min Exi Min Matter Collected 459 | 176 141 55 . 87 Remotely . | . . . . . Salvage Created 551 | . 310 83 . 158 Parts 27 | . 20 4 . 3 Haulers Intercepted . | . . . . . Recyclers Shooed . | . . . . . Parts Field Recycled . | . . . . . Retrieved Matter . | . . . . . Parts Self-Destructed . | . . . . . Prevented . | . . . . . Kills | -11 -10 -10 -10 -9 ------- Run | Yrd Mat Min Exi Min Combat Hostiles Destroyed 18 | . 8 2 . 8 Guns 10 | . 8 2 . . Cannons 1 | . . . . 1 AOE 7 | . . . . 7 Classes Destroyed 6 | . 4 . . 2 Builder 1 | . 1 . . . Tunneler 1 | . . . . 1 Watcher 1 | . 1 . . . Swarmer 5 | . 3 . . 2 Grunt 9 | . 5 2 . 2 Assembled 4 | . . . . 4 Best Kill Streak 4 | . 4 2 . 2 Combat Bots Only 3 | . 3 2 . 2 Max Kills in Single Turn 2 | . 1 1 . 2 Gunslinging . | . . . . . Exploded 2 | . . . . 2 Melee . | . . . . . Uniques/NPCs Destroyed . | . . . . . Combat | -11 -10 -10 -10 -9 -------- Run | Yrd Mat Min Exi Min Hostile Shots Fired 102 | . 54 17 . 31 Missed 25 | . 12 6 . 7 Damage Taken 1210 | . 480 137 . 593 Core 273 | . 57 34 . 182 Absorbed by Shields . | . . . . . Core Remaining (%) 100 | 100 . . . . Volleys Fired 57 | . 40 9 . 8 Largest 2 | . 2 2 . 1 Hottest 250 | . 90 40 . 250 Shots Fired 93 | . 67 18 . 8 Gun 85 | . 67 18 . . Cannon 8 | . . . . 8 Launcher . | . . . . . Special . | . . . . . Kinetic 28 | . 10 18 . . Thermal 44 | . 36 . . 8 Explosive . | . . . . . Electromagnetic 21 | . 21 . . . Robot Hit Streak 12 | . 12 3 . 2 Robot Miss Streak 5 | . 3 2 . 5 Penetration Max . | . . . . . Secondary Targets 1 | . 1 . . . Max Gunslinging Chain 1 | . 1 . . . Shots Hit Robots 57 | . 39 11 . 7 Core Hits 38 | . 18 5 . 15 Critical Kills . | . . . . . Critical Parts Destroyed . | . . . . . Critical Strikes 3 | . 3 . . . Burn 2 | . 2 . . . Corrupt 1 | . 1 . . . Melee Attacks . | . . . . . Impact . | . . . . . Slashing . | . . . . . Piercing . | . . . . . Sneak Attacks . | . . . . . Combat Hostiles . | . . . . . Follow-up Attacks . | . . . . . Damage Inflicted 1145 | . 569 112 . 464 Guns 641 | . 529 112 . . Cannons 115 | . . . . 115 Explosions 368 | . 29 . . 339 Melee . | . . . . . Ramming 21 | . 11 . . 10 Kinetic 209 | . 97 112 . . Thermal 758 | . 304 . . 454 Explosive . | . . . . . Electromagnetic 157 | . 157 . . . Impact . | . . . . . Slashing . | . . . . . Piercing . | . . . . . Highest Corruption . | . . . . . Average Corruption . | . . . . . Corruption Purged . | . . . . . Corruption Blocked . | . . . . . Overload Shots . | . . . . . Overflow Damage . | . . . . . Projectiles . | . . . . . Explosions . | . . . . . Melee . | . . . . . Knockbacks . | . . . . . Impact . | . . . . . Kinetic . | . . . . . Secondary . | . . . . . Self-Inflicted Damage 86 | . . . . 86 Shots 9 | . . . . 9 Rammed 3 | . 2 . . 1 Targets Rammed 4 | . 2 . . 2 Kicked . | . . . . . Crushed 1 | . . . . 1 Highest Temperature 641 | . 334 15 . 641 Average Temperature 163 | . 111 6 . 259 Received Heat Transfer 360 | . 210 81 . 69 Effects 14 | . 3 . . 11 Shutdowns 1 | . . . . 1 Energy Bleed 2 | . . . . 2 Interference 5 | . 3 . . 2 Matter Decay 1 | . . . . 1 Short Circuit 2 | . . . . 2 Damage (major) 3 | . . . . 3 Siege Activations . | . . . . . Robots Corrupted . | . . . . . Combat Hostiles . | . . . . . Parts Fried . | . . . . . Impact Corruptions . | . . . . . Robots Melted . | . . . . . Combat Hostiles . | . . . . . Parts Melted 5 | . 2 . . 3 Heat Transferred 3122 | . 962 . . 2160 Parts Sabotaged . | . . . . . Parts Stolen . | . . . . . Parts Stripped . | . . . . . Power Chain Reactions 1 | . 1 . . . Alert | -11 -10 -10 -10 -9 ------- Run | Yrd Mat Min Exi Min Peak Influence 165 | . 165 67 . 154 Initial 27 | . . 27 . . Average 68 | . 88 38 . 90 Maximum Alert Level . | . . . . . Low Security (%) 100 | 100 100 100 . 100 Level 1 . | . . . . . Level 2 . | . . . . . Level 3 . | . . . . . Level 4 . | . . . . . Level 5 . | . . . . . High Security . | . . . . . Max Security . | . . . . . Squads Dispatched 1 | . 1 . . . Investigation . | . . . . . Extermination . | . . . . . Reinforcement 1 | . 1 . . . Assault . | . . . . . Garrison . | . . . . . Intercept . | . . . . . Searches Triggered . | . . . . . Construction Impeded . | . . . . . Haulers Reinforced . | . . . . . Active Scanning Responses . | . . . . . Cargo Convoy Interrupts . | . . . . . Stealth | -11 -10 -10 -10 -9 --------- Run | Yrd Mat Min Exi Min Distress Signals 1 | . 1 . . . Communications Jammed . | . . . . . Distress Signals . | . . . . . Times Spotted 28 | . 11 2 . 15 Peak Tracking Total 8 | . 4 2 . 8 Tactical Retreats 1 | . . . . 1 Traps | -11 -10 -10 -10 -9 ------- Run | Yrd Mat Min Exi Min Traps Triggered 1 | . 1 . . . Indirectly . | . . . . . Trap Hack Attempts . | . . . . . Triggered . | . . . . . Disarmed . | . . . . . Reprogrammed . | . . . . . Reused . | . . . . . Traps Extracted . | . . . . . Installed . | . . . . . Triggered . | . . . . . Machines | -11 -10 -10 -10 -9 ---------- Run | Yrd Mat Min Exi Min Machines Disabled 1 | . 1 . . . Max in Single Turn 1 | . 1 . . . Machines Repaired . | . . . . . Machines Dismantled . | . . . . . Machines Sabotaged . | . . . . . Overloaded Fab Kills . | . . . . . Hacking | -11 -10 -10 -10 -9 --------- Run | Yrd Mat Min Exi Min Machines Accessed 3 | . 3 . . . Terminals 2 | . 2 . . . Fabricators . | . . . . . Repair Stations . | . . . . . Recycling Units 1 | . 1 . . . Scanalyzers . | . . . . . Garrison Access . | . . . . . Total Hacks 8 | . 8 . . . Successful 7 | . 7 . . . Failed 1 | . 1 . . . Catastrophic . | . . . . . Database Lockouts . | . . . . . Manual 1 | . . . 1 . Terminals 5 | . 5 . . . Fabricators . | . . . . . Repair Stations . | . . . . . Recycling Units 3 | . 3 . . . Scanalyzers . | . . . . . Garrison Access . | . . . . . Terminal Hacks 4 | . 4 . . . Record 1 | . 1 . . . Prototype ID Bank 1 | . 1 . . . Zone Layout 2 | . 2 . . . Fabricator Hacks . | . . . . . Repair Station Hacks . | . . . . . Recycling Unit Hacks 3 | . 3 . . . Process 1 | . 1 . . . Report Inventory 1 | . 1 . . . Retrieve Matter 1 | . 1 . . . Scanalyzer . | . . . . . Garrison Access Hacks . | . . . . . Unauthorized Hacks . | . . . . . Terminals . | . . . . . Fabricators . | . . . . . Repair Stations . | . . . . . Recycling Units . | . . . . . Scanalyzers . | . . . . . Garrison Access . | . . . . . Data Cores Recovered . | . . . . . Used . | . . . . . Hacking Detections 1 | . 1 . . . Full Trace Events . | . . . . . Feedback Events . | . . . . . Feedback Blocked . | . . . . . Robot Schematics Acquired . | . . . . . Robots Built . | . . . . . Authchips . | . . . . . Time . | . . . . . Total Robot Build Rating . | . . . . . Part Schematics Acquired . | . . . . . Parts Built . | . . . . . Authchips . | . . . . . Time . | . . . . . Total Part Build Rating . | . . . . . Parts Repaired . | . . . . . Time . | . . . . . Parts Recycled . | . . . . . Recycled Matter 10 | . 10 . . . Retrieved Matter 10 | . 10 . . . Retrieved Components . | . . . . . Parts Scanalyzed . | . . . . . Part Schematics Acquired . | . . . . . Parts Damaged . | . . . . . Bothacking | -11 -10 -10 -10 -9 ------------ Run | Yrd Mat Min Exi Min Used RIF Installer . | . . . . . Robots Hacked . | . . . . . Non-combat . | . . . . . Combat . | . . . . . Robot Hacks Applied . | . . . . . Relay Couplers Released . | . . . . . Fabnet Peak Effective % . | . . . . . Robots Rewired . | . . . . . Allies Hacked . | . . . . . Hacks Repelled . | . . . . . Allies | -11 -10 -10 -10 -9 -------- Run | Yrd Mat Min Exi Min Total Allies 2 | . . 2 . . Largest Group 2 | . . 2 1 . Highest-Rated Group 49 | . . 49 31 . Highest-Rated Ally 31 | . . 31 31 . Total Orders . | . . . . . Ally Attacks . | . . . . . Total Damage . | . . . . . Kills . | . . . . . Allies Corrupted . | . . . . . Allies Melted . | . . . . . Intel | -11 -10 -10 -10 -9 ------- Run | Yrd Mat Min Exi Min Robot Analysis Total . | . . . . . Derelict Logs Recovered 2 | . . 1 . 1 Drone Launches . | . . . . . Drone Recoveries . | . . . . . Exploration | -11 -10 -10 -10 -9 ------------- Run | Yrd Mat Min Exi Min Turns Passed 2322 | 82 481 471 850 438 Spaces Moved 1208 | 46 221 274 512 155 Core 6 | 6 . . . . Treads 1194 | 40 221 274 512 147 Legs 8 | . . . . 8 Wheels . | . . . . . Hover . | . . . . . Flight . | . . . . . Fastest Speed 50 | 50 160 160 160 240 Average Speed 174 | 145 160 160 165 260 Slowest Speed 320 | 160 160 160 240 320 Overloaded Moves . | . . . . . Propulsion Burnouts . | . . . . . Robots Hopped . | . . . . . Cave-ins Triggered . | . . . . . Exploration Rate (%) 45 | 4 47 54 90 34 Regions Visited 4 Branch Regions 3 Pre-discovered Areas 2 | . . 1 . 1 Known Exits Taken . | . . . . . Unknown Exits Taken 4 | 1 1 1 1 . Scrap Searched 2 | . . 1 . 1 Spaces Dug . | . . . . . Terrain Destroyed 77 | . 3 . . 74 Melee . | . . . . . Projectile 6 | . . . . 6 AOE 71 | . 3 . . 68 Terrain Rammed . | . . . . . Walls Destroyed . | . . . . . Machines Disabled . | . . . . . Actions | -11 -10 -10 -10 -9 --------- Run | Yrd Mat Min Exi Min Total 1330 | 59 282 291 521 177 Wait 13 | . 3 4 . 6 Move 1204 | 45 220 273 511 155 Hop . | . . . . . Pick Up 24 | 8 8 2 3 3 Fast Attach 5 | 4 1 . . . Attach 12 | 2 4 2 1 3 Detach 2 | . 1 1 . . Swap 1 | . . . 1 . Drop 8 | . 3 . 5 . Fire 57 | . 40 9 . 8 Melee . | . . . . . Ram . | . . . . . Kick . | . . . . . Crush 4 | . 2 . . 2 Escape Stasis . | . . . . . Rewire . | . . . . . Trap . | . . . . . Miscellaneous . | . . . . . Route ------- -11/Scrapyard -10/Materials (discovered 3 exits: [*Mat] / [*Min x2]) -10/Mines (discovered 3 exits: [*Mat x2] / *Exi) -10/Exiles (discovered 2 exits: [*Min x2]) -9/Mines History --------- Turn | Location | Event 12 | -11/Scrapyard | Discovered new exit (range 15) 83 | -11/Scrapyard | Entered Materials 303 | -10/Materials | Build established: Mutant 401 | -10/Materials | Discovered new exit (range 4) 423 | -10/Materials | Discovered new exit (range 13) 484 | -10/Materials | Discovered new exit (range 13) 564 | -10/Materials | Entered Mines 574 | -10/Mines | Learned location of Storage (-8) 676 | -10/Mines | Discovered new exit (range 4) 812 | -10/Mines | Discovered new exit (range 11) 1025 | -10/Mines | Deemed a non-threat by the Exiles lab entrance 1025 | -10/Mines | Discovered new exit (range 6) 1035 | -10/Mines | Entered Exiles 1035 | -10/Exiles | Accompanied by 1 ally 1061 | -10/Exiles | Discovered new exit (range 14) 1065 | -10/Exiles | Led the pair of lost Derelicts to a safe place 1079 | -10/Exiles | Met 8R-AWN 1106 | -10/Exiles | Met EX-HEX 1159 | -10/Exiles | Met EX-BIN 1176 | -10/Exiles | Aligned with FarCom system 1178 | -10/Exiles | Given EX-Vault access code 1223 | -10/Exiles | Opened EX-Vault 1232 | -10/Exiles | Found Prototype Energy Cannon 1248 | -10/Exiles | Identified Firepult 1269 | -10/Exiles | Warned to stay clear of 0b10 Research branches 1317 | -10/Exiles | Met EX-DEC 1375 | -10/Exiles | Visited The Gauntlet 1866 | -10/Exiles | Discovered new exit (range 10) 1885 | -10/Exiles | Left Exiles lab with Firepult 1885 | -10/Exiles | Entered Mines 1981 | -9/Mines | A weapon hastily lodged in a ceiling crevice suddenly fell to the ground 2230 | -9/Mines | Assembled infested the area 2287 | -9/Mines | Core integrity fell below 50% 2319 | -9/Mines | Core integrity fell below 20% 2320 | -9/Mines | Lost 3 parts (1p2n) 2323 | -9/Mines | Destroyed by D-53 Grenadier with Mini Grenade Launcher Last Messages --------------- 02307_ as-37217 destroyed. 02309_ Knocked back. 02309_ as-88680 destroyed. 02310_ R-06 Scavenger destroyed. 02314_ as-24160 destroyed. 02316_ D-53 Grenadier overheating. 02316_ D-53 Grenadier destroyed. 02316_ as-57566 destroyed. 02317_ D-53 Grenadier heat damages Imp. Light Armor Plating, Launcher Guidance Computer, Cmb. Airjet, Shock Absorption System. 02317_ D-53 Grenadier overheating. 02319_ R-06 Scavenger collects Sml. Laser. 02320_ D-53 Grenadier overheating. 02321_ as-21772 destroyed. 02321_ as-31105 destroyed. 02322_ as-58070 destroyed. 02322_ as-09305 destroyed. 02322_ R-06 Scavenger collects Sml. Storage Unit. Map ----- +----------------------------------------------------+ | | | | | | | ?????????????????????????????????????????????????? | | ?????????????????????????????????????????????????? | | ?????????????????????????????????????????????????? | | ?????????????????????????????????????????????????? | | ?????????????????????????????????????????????????? | | ?????????????????????????????????????????????????? | | ?????????????????????????????????????????????????? | | ?????????????????????????????????????????????????? | | ?????????????????????????????????????????????????? | | ?????????????????????????????????????????????????? | | ?????????????????????????????????????????????????? | | ?????????????????????????????????????????????????? | | ?????????????????????????????????????????????????? | | ????????????????????####????#????????????????????? | | ????????????????????# #?? ###??????????????????? | | ??????????????????### ??"%"???????????????????? | | ?????????????????## # #????????????????????? | | ???????????#;### # " #????????????????????? | | ??????????? d ??????????????????????? | | ??????????? !%"???????????????????????? | | ????????????# ##??????????????????????? | | ???????????# % ##?????????????????????? | | ???????????# @ #?????????????????????? | | ???????????# #?????????????????????? | | ?????????????## * ####???????????????????? | | ??????????????## % ##########??????????????????? | | ???????????????###r######### ##?????????????????? | | ?????????????????# #?????????????????? | | ?????????????????# #?????????????????? | | ?????????????????######## ##?????????????????? | | ???????????????????????## ###??????????????????? | | ???????????????????????## ##????????????????????? | | ???????????????????????## ##????????????????????? | | ??????????????????????### ##????????????????????? | | ?????????????????????#### ###???????????????????? | | ????????????????????#### ####??????????????????? | | ???????????????????#### ###??????????????????? | | ??????????????????#### ##??????????????????? | | ????????????######### ###?????????????????? | | ????????????######## ! ###?????????????????? | | ????????????## ! ???????????? | | ??????????#### ##### ????????? | | ??????????#### ####### ###### ????????? | | ??????????## ##?#### # ##### ??? ???????? | | ??????????## ##???## # ##????????????????? | | ??????????## ######### # ###????????????????? | | ??????????## ######### # ##????????????????? | +----------------------------------------------------+ Best States ------------- Heat Dissipation 25 Energy Generation 14 Energy Capacity 250 Matter Stores 300 Matter Capacity 300 Sight Range 16 Terrain Scan Density 10 Evasion (%) 40 Targeting Accuracy 5 Recoil Reduction 2 Item Schematics ----------------- None Robot Schematics ------------------ None Fabricated ------------ Nothing Alien Tech Used ----------------- None Achievements -------------- None Challenges ------------ None Game ------ Seed ChipBattleAutobeam Manual? 0 Play Time 00:15:11 Cumulative 7.1 hours Start 2024.10.08 @ 14:53:01 End 2024.10.08 @ 15:05:52 Sessions 1 Manual Loads 0 Difficulty Rogue Special Mode None Game No. 22 Rogue 22 Adventurer 0 Explorer 0 Win Type - Total 0 Types 0/0/0/0/0/0/0/0/0 Lore% 5 Gallery% 10 Achievement% 11 Wizard Run 0 Options --------- Layout 1 ASCII 0 Keyboard 0 Movement Numpad Keybinds 0 Fullscreen 1 Font 32/SmallcapsGlow Map View 50x35 Zoom Use 0% Tactical HUD 1 Map Filters NONE Filters NONE Steam 1 RUN: a58b118e-a6ac-41a0-b61a-bcebb41c85f9